[Event "28th Hit Open-A 2024"]
[Site "Nova Gorica"]
[Date "2024.01.27"]
[Round "2.9"]
[White "Davies, Nigel R"]
[Black "Zupancic, Urban"]
[Result "1/2-1/2"]
[ECO "B07"]
[WhiteElo "2349"]
[BlackElo "2025"]
[Annotator "RC"]
[PlyCount "96"]
[EventDate "2024.01.22"]
[EventType "swiss"]
[EventCountry "SLO"]
[SourceTitle "playchess.com"]
[Source "ChessBase"]
[SourceQuality "1"]
[TimeControl "5400+30"]

1. d4 {[%emt 0:00:07]} Nf6 {[%emt 0:00:13]} 2. Nf3 {[%emt 0:00:08]} g6 {[%emt 0:00:18]} 3. Nbd2 {[%emt 0:00:22]} Bg7 {[%emt 0:05:05]} 4. e4 {[%emt 0:00:09]} d6 {[%emt 0:00:24]} 5. Bd3 {[%emt 0:00:16]} O-O {[%emt 0:01:31]} 6. O-O {[%emt 0:00:11]} Nc6 {[%emt 0:07:27]} 7. Re1 {[%emt 0:00:35]} e5 {[%emt 0:02:58]} 8. dxe5 {[%emt 0:02:40]} dxe5 {[%emt 0:01:51]} 9. Bf1 {[%emt 0:00:21]} Qe7 {[%emt 0:09:57]} 10. c3 {[%emt 0:00:25]} Rd8 {[%emt 0:10:01]} 11. Qc2 {[%emt 0:00:23]} b6 {[%emt 0:08:50]} 12. Nc4 {[%emt 0:02:43]} Bb7 {[%emt 0:15:49]} 13. Bg5 {[%emt 0:07:33]} Rd7 {[%emt 0:06:18]} 14. b4 {[%emt 0:03:15]} a6 {[%emt 0:11:52]} 15. a4 {[%emt 0:00:23]} Qe8 {[%emt 0:05:10]} 16. Nfd2 {[%emt 0:09:46]} Nd8 {[%emt 0:01:12]} 17. Bh4 {[%emt 0:06:29]} Nh5 {[%emt 0:00:53]} 18. f3 {[%emt 0:01:39]} Ne6 {[%emt 0:01:05]} 19. Nb3 {[%emt 0:01:23]} f6 {[%emt 0:03:11]} 20. Ne3 {[%emt 0:02:05]} Rad8 {[%emt 0:03:24]} 21. Nd5 {[%emt 0:01:50]} Bxd5 {[%emt 0:01:13]} 22. exd5 {[%emt 0:00:07]} Rxd5 {[%emt 0:00:31]} 23. Bxa6 {[%emt 0:00:33]} Qd7 {[%emt 0:02:03]} 24. Bc4 {[%emt 0:01:27]} Rd6 {[%emt 0:00:06]} 25. a5 {[%emt 0:04:22]} Kh8 {[%emt 0:00:51]} 26. a6 {[%emt 0:00:49]} Qc6 {[%emt 0:00:38]} 27. Qe4 {[%emt 0:00:54]} Nhf4 {[%emt 0:00:30]} 28. a7 {[%emt 0:07:23]} Qa8 {[%emt 0:00:14]} 29. Bf2 {[%emt 0:01:38]} f5 {[%emt 0:00:38]} 30. Qxa8 {[%emt 0:00:46]} Rxa8 {[%emt 0:00:04]} 31. Bg3 {[%emt 0:01:22]} Bf6 {[%emt 0:01:01]} 32. Bxe6 {[%emt 0:00:27]} Nxe6 {[%emt 0:00:08]} 33. Bxe5 {[%emt 0:00:15]} Bxe5 {[%emt 0:00:11]} 34. Rxe5 {[%emt 0:00:08]} Kg7 {[%emt 0:00:30]} 35. c4 {[%emt 0:07:34]} Kf6 {[%emt 0:00:41]} 36. Re3 {[%emt 0:01:16]} c6 {[%emt 0:01:08]} 37. Ra6 {[%emt 0:01:25]} Nd4 {[%emt 0:00:17]} 38. Nxd4 {[%emt 0:00:37]} Rxd4 {[%emt 0:00:04]} 39. Rea3 {[%emt 0:02:06]} Rd2 {[%emt 0:00:56]} 40. Ra2 {[%emt 0:02:35]} Rxa2 {[%emt 0:00:26]} 41. Rxa2 {[%emt 0:00:07]} Ke5 {[%emt 0:00:38]} 42. Ra6 {[%emt 0:00:29]} c5 {[%emt 0:00:38]} 43. Rxb6 {[%emt 0:06:18]} cxb4 {[%emt 0:00:12]} 44. Rxb4 {[%emt 0:00:59]} Rxa7 {[%emt 0:00:13]} 45. Rb1 {[%emt 0:02:26]} Kd4 {[%emt 0:00:38]} 46. Rc1 {[%emt 0:00:05]} Rc7 {[%emt 0:00:40]} 47. Kf2 {[%emt 0:00:22]} Rxc4 {[%emt 0:00:25]} 48. Rd1+ {[%emt 0:00:59]} Ke5 {[%emt 0:00:09]} 1/2-1/2

[Event "28th Hit Open-A 2024"]
[Site "Nova Gorica"]
[Date "2024.01.27"]
[Round "2.10"]
[White "Bodrogi, Bendeguz"]
[Black "Dorokhina, Elizaveta"]
[Result "1-0"]
[ECO "D78"]
[WhiteElo "2261"]
[BlackElo "1994"]
[Annotator "NA RC"]
[PlyCount "129"]
[EventDate "2024.01.22"]
[EventType "swiss"]
[EventCountry "SLO"]
[SourceTitle "playchess.com"]
[Source "ChessBase"]
[SourceQuality "1"]
[TimeControl "5400+30"]

1. Nf3 {[%emt 0:26:01]} d5 {[%emt 0:01:07]} 2. g3 {[%emt 0:00:19]} g6 {[%emt 0:04:17]} 3. c4 {[%emt 0:01:18]} c6 {[%emt 0:00:40]} 4. Qa4 {[%emt 0:03:15]} dxc4 {[%emt 0:10:57]} 5. Qxc4 {[%emt 0:00:10]} Bg7 {[%emt 0:00:18]} 6. Bg2 {[%emt 0:00:51]} Nf6 {[%emt 0:00:46]} 7. O-O {[%emt 0:01:22]} O-O {[%emt 0:00:20]} 8. Nc3 {[%emt 0:12:47]} Nbd7 {[%emt 0:10:21]} 9. d4 {[%emt 0:07:16]} Nb6 {[%emt 0:03:15]} 10. Qd3 {[%emt 0:02:36]} Be6 {[%emt 0:15:03]} 11. Rd1 {[%emt 0:03:42]} Qc8 {[%emt 0:08:17]} 12. e4 {[%emt 0:11:59]} Rd8 {[%emt 0:02:45]} 13. Bf4 {[%emt 0:02:26]} Bg4 {[%emt 0:04:04]} 14. Rac1 {[%emt 0:01:44]} Nh5 {[%emt 0:06:51]} 15. Be3 {[%emt 0:05:27]} Qd7 {[%emt 0:05:41]} 16. Qf1 {[%emt 0:02:54]} Qe8 {[%emt 0:02:45]} 17. h3 {[%emt 0:00:31]} Bxf3 {[%emt 0:00:46]} 18. Bxf3 {[%emt 0:00:06]} Nf6 {[%emt 0:00:03]} 19. a4 {[%emt 0:01:14]} e6 {[%emt 0:11:26]} 20. a5 {[%emt 0:01:32]} Nbd7 {[%emt 0:01:49]} 21. a6 {[%emt 0:03:04]} b5 {[%emt 0:02:36]} 22. e5 {[%emt 0:02:57]} Nd5 {[%emt 0:00:12]} 23. Nxd5 {[%emt 0:01:07]} cxd5 {[%emt 0:00:15]} 24. Qxb5 {[%emt 0:01:44]} Bf8 {[%emt 0:01:12]} 25. Rc7 {[%emt 0:00:39]} Nxe5 {[%emt 0:00:56]} 26. Qxe8 {[%emt 0:00:11]} Nxf3+ {[%emt 0:00:05]} 27. Kg2 {[%emt 0:00:04]} Rxe8 {[%emt 0:00:27]} 28. Kxf3 {[%emt 0:00:06]} Reb8 {[%emt 0:00:15]} 29. Rdc1 {[%emt 0:00:10]} Rb6 {[%emt 0:04:08]} 30. Rd7 {[%emt 0:05:05]} Rxa6 {[%emt 0:01:12]} 31. Rcc7 {[%emt 0:00:02]} Bd6 {[%emt 0:01:20]} 32. Rb7 {[%emt 0:00:05]} Rf8 {[%emt 0:01:12]} 33. Bh6 {[%emt 0:00:10]} Re8 {[%emt 0:00:57]} 34. Rxf7 {[%emt 0:00:06]} Bf8 {[%emt 0:00:05]} 35. Rxh7 {[%emt 0:00:38]} Rb6 {[%emt 0:00:29]} 36. Rxa7 {[%emt 0:01:33]} Rxb2 {[%emt 0:00:06]} 37. Kg4 {[%emt 0:00:58]} Bxh6 {[%emt 0:01:26]} 38. Rxh6 {[%emt 0:00:05]} Rxf2 {[%emt 0:00:08]} 39. Rxg6+ {[%emt 0:00:04]} Kf8 {[%emt 0:00:11]} 40. Rh6 {[%emt 0:00:54]} Kg8 {[%emt 0:00:14]} 41. Rah7 {[%emt 0:02:06]} Re2 {[%emt 0:00:23]} 42. Kg5 {[%emt 0:00:13]} Kf8 {[%emt 0:00:48]} 43. Kf6 {[%emt 0:01:40]} Rf2+ {[%emt 0:00:18]} 44. Ke5 {[%emt 0:00:34]} Re2+ {[%emt 0:01:27]} 45. Kf6 {[%emt 0:00:18]} Rf2+ {[%emt 0:00:03]} 46. Kg6 {[%emt 0:00:06]} Rf3 {[%emt 0:01:00]} 47. g4 {[%emt 0:00:08]} e5 {[%emt 0:00:16]} 48. Rh8+ {[%emt 0:00:05]} Ke7 {[%emt 0:00:04]} 49. R6h7+ {[%emt 0:00:05]} Kd8 {[%emt 0:00:07]} 50. Rxe8+ {[%emt 0:00:12]} Kxe8 {[%emt 0:00:03]} 51. dxe5 {[%emt 0:00:06]} d4 {[%emt 0:00:13]} 52. g5 {[%emt 0:00:52]} d3 {[%emt 0:00:07]} 53. Rh4 {[%emt 0:00:04]} Ke7 {[%emt 0:00:34]} 54. Rd4 {[%emt 0:01:28]} Rxh3 {[%emt 0:00:53]} 55. Rd6 {[%emt 0:00:03]} Re3 {[%emt 0:00:30]} 56. Kh6 {[%emt 0:01:47]} Rxe5 {[%emt 0:01:46]} 57. Rxd3 {[%emt 0:00:05]} Re1 {[%emt 0:00:50]} 58. Kg7 {[%emt 0:00:15]} Ke6 {[%emt 0:00:37]} 59. g6 {[%emt 0:00:06]} Rg1 {[%emt 0:00:22]} 60. Rf3 {[%emt 0:00:06]} Rg2 {[%emt 0:00:40]} 61. Kh7 {[%emt 0:00:15]} Ke7 {[%emt 0:00:29]} 62. g7 {[%emt 0:00:13]} Rh2+ {[%emt 0:00:04]} 63. Kg8 {[%emt 0:00:07]} Ra2 {[%emt 0:00:37]} 64. Rh3 {[%emt 0:00:04]} Kf6 {[%emt 0:00:46]} 65. Kh8 {[%emt 0:00:05]} 1-0

[Event "28th Hit Open-A 2024"]
[Site "Nova Gorica"]
[Date "2024.01.27"]
[Round "2.11"]
[White "Djuric, Stefan"]
[Black "Privitera, Franco"]
[Result "1/2-1/2"]
[ECO "B06"]
[WhiteElo "2220"]
[BlackElo "1919"]
[Annotator "NA RC"]
[PlyCount "133"]
[EventDate "2024.01.22"]
[EventType "swiss"]
[EventCountry "SLO"]
[SourceTitle "playchess.com"]
[Source "ChessBase"]
[SourceQuality "1"]
[TimeControl "5400+30"]

1. e4 {[%emt 0:10:06]} g6 {[%emt 0:00:38]} 2. d4 {[%emt 0:00:08]} Nf6 {[%emt 0:00:12]} 3. e5 {[%emt 0:01:57]} Nh5 {[%emt 0:00:09]} 4. Be2 {[%emt 0:03:06]} d6 {[%emt 0:00:27]} 5. exd6 {[%emt 0:03:33]} Qxd6 {[%emt 0:01:17]} 6. Nc3 {[%emt 0:00:23]} Bg7 {[%emt 0:09:13]} 7. Nf3 {[%emt 0:02:53]} Nc6 {[%emt 0:03:12]} 8. Nb5 {[%emt 0:02:37]} Qd8 {[%emt 0:00:36]} 9. d5 {[%emt 0:00:42]} Nb8 {[%emt 0:04:47]} 10. c4 {[%emt 0:08:21]} O-O {[%emt 0:01:37]} 11. O-O {[%emt 0:00:35]} c6 {[%emt 0:08:31]} 12. Nc3 {[%emt 0:00:06]} Na6 {[%emt 0:01:44]} 13. Bg5 {[%emt 0:03:03]} h6 {[%emt 0:01:15]} 14. Be3 {[%emt 0:00:02]} Nf6 {[%emt 0:02:43]} 15. dxc6 {[%emt 0:05:54]} bxc6 {[%emt 0:00:23]} 16. Qxd8 {[%emt 0:05:22]} Rxd8 {[%emt 0:00:11]} 17. Ne5 {[%emt 0:00:02]} Bb7 {[%emt 0:04:35]} 18. Rad1 {[%emt 0:02:49]} c5 {[%emt 0:02:44]} 19. f4 {[%emt 0:09:25]} Ne4 {[%emt 0:07:19]} 20. Nb5 {[%emt 0:04:45]} Nd6 {[%emt 0:01:15]} 21. a3 {[%emt 0:03:05]} g5 {[%emt 0:03:41]} 22. Nxd6 {[%emt 0:03:14]} exd6 {[%emt 0:03:33]} 23. Nd3 {[%emt 0:14:38]} Re8 {[%emt 0:02:37]} 24. Kf2 {[%emt 0:02:51]} Re7 {[%emt 0:00:47]} 25. Bf3 {[%emt 0:04:10]} Bxf3 {[%emt 0:01:24]} 26. gxf3 {[%emt 0:00:41]} Rae8 {[%emt 0:00:53]} 27. Bd2 {[%emt 0:00:16]} Re2+ {[%emt 0:03:42]} 28. Kg3 {[%emt 0:01:28]} Nb8 {[%emt 0:01:26]} 29. fxg5 {[%emt 0:01:42]} hxg5 {[%emt 0:00:23]} 30. Bxg5 {[%emt 0:01:31]} Nc6 {[%emt 0:00:36]} 31. Rf2 {[%emt 0:00:26]} Nd4 {[%emt 0:01:38]} 32. Rxe2 {[%emt 0:00:20]} Rxe2 {[%emt 0:05:17]} 33. Rd2 {[%emt 0:00:23]} Re8 {[%emt 0:00:51]} 34. Kg2 {[%emt 0:01:54]} Ne6 {[%emt 0:01:23]} 35. Be3 {[%emt 0:00:36]} Nd4 {[%emt 0:00:26]} 36. Bxd4 {[%emt 0:01:00]} Bxd4 {[%emt 0:00:10]} 37. Nf4 {[%emt 0:00:35]} Rb8 {[%emt 0:00:14]} 38. Nd3 {[%emt 0:00:13]} Rb3 {[%emt 0:01:37]} 39. Kf1 {[%emt 0:00:24]} Kh7 {[%emt 0:00:40]} 40. Ke2 {[%emt 0:00:13]} a5 {[%emt 0:00:29]} 41. Kd1 {[%emt 0:00:52]} a4 {[%emt 0:02:35]} 42. Kc2 {[%emt 0:00:01]} Rb8 {[%emt 0:00:35]} 43. Re2 {[%emt 0:00:45]} Rg8 {[%emt 0:00:18]} 44. b3 {[%emt 0:00:29]} Rb8 {[%emt 0:02:27]} 45. bxa4 {[%emt 0:00:33]} Ra8 {[%emt 0:00:15]} 46. Kb3 {[%emt 0:00:26]} Rb8+ {[%emt 0:00:02]} 47. Ka2 {[%emt 0:00:44]} Ra8 {[%emt 0:00:02]} 48. Re7 {[%emt 0:00:14]} Kg7 {[%emt 0:00:37]} 49. Rb7 {[%emt 0:00:24]} Rxa4 {[%emt 0:01:41]} 50. Kb3 {[%emt 0:00:29]} Ra8 {[%emt 0:00:23]} 51. Rb6 {[%emt 0:00:26]} Rh8 {[%emt 0:00:35]} 52. Rxd6 {[%emt 0:01:15]} Rh3 {[%emt 0:00:43]} 53. a4 {[%emt 0:00:38]} Rxf3 {[%emt 0:00:15]} 54. Kc2 {[%emt 0:00:01]} Rh3 {[%emt 0:00:33]} 55. a5 {[%emt 0:00:50]} Rxh2+ {[%emt 0:00:07]} 56. Kd1 {[%emt 0:00:46]} Ra2 {[%emt 0:02:54]} 57. a6 {[%emt 0:00:12]} Be3 {[%emt 0:05:24]} 58. Ke1 {[%emt 0:00:45]} Bd4 {[%emt 0:02:30]} 59. Rc6 {[%emt 0:00:21]} Ra4 {[%emt 0:02:36]} 60. Nxc5 {[%emt 0:02:02]} Bxc5 {[%emt 0:00:20]} 61. Rxc5 {[%emt 0:00:02]} Rxa6 {[%emt 0:00:07]} 62. Kd2 {[%emt 0:00:10]} Kf6 {[%emt 0:00:54]} 63. Ke3 {[%emt 0:00:14]} Ke6 {[%emt 0:00:16]} 64. Rh5 {[%emt 0:00:09]} Ra1 {[%emt 0:00:47]} 65. Kd4 {[%emt 0:00:10]} Kd6 {[%emt 0:00:50]} 66. Rh6+ {[%emt 0:00:15]} Kd7 {[%emt 0:00:41]} 67. Rf6 {[%emt 0:00:08]} 1/2-1/2

[Event "28th Hit Open-A 2024"]
[Site "Nova Gorica"]
[Date "2024.01.27"]
[Round "2.12"]
[White "Orsatti, Marcello"]
[Black "Skrbec, Leon"]
[Result "0-1"]
[ECO "A23"]
[WhiteElo "1918"]
[BlackElo "2218"]
[Annotator "NA RC"]
[PlyCount "56"]
[EventDate "2024.01.22"]
[EventType "swiss"]
[EventCountry "SLO"]
[SourceTitle "playchess.com"]
[Source "ChessBase"]
[SourceQuality "1"]
[TimeControl "5400+30"]

1. c4 {[%emt 0:00:03]} e5 {[%emt 0:00:06]} 2. g3 {[%emt 0:00:03]} Nf6 {[%emt 0:00:07]} 3. Bg2 {[%emt 0:00:05]} c6 {[%emt 0:00:05]} 4. Nc3 {[%emt 0:00:05]} d5 {[%emt 0:00:15]} 5. cxd5 {[%emt 0:00:40]} cxd5 {[%emt 0:00:05]} 6. d4 {[%emt 0:05:15]} exd4 {[%emt 0:00:47]} 7. Qxd4 {[%emt 0:01:43]} Nc6 {[%emt 0:00:04]} 8. Qa4 {[%emt 0:01:02]} d4 {[%emt 0:00:32]} 9. Ne4 {[%emt 0:07:19]} Nxe4 {[%emt 0:01:08]} 10. Bxe4 {[%emt 0:00:10]} Bb4+ {[%emt 0:00:08]} 11. Kf1 {[%emt 0:01:08]} Be7 {[%emt 0:00:08]} 12. Nf3 {[%emt 0:05:55]} Bh3+ {[%emt 0:00:13]} 13. Kg1 {[%emt 0:00:46]} O-O {[%emt 0:00:09]} 14. Bxc6 {[%emt 0:08:38]} bxc6 {[%emt 0:00:09]} 15. Qxd4 {[%emt 0:14:58]} Rb8 {[%emt 0:00:36]} 16. Bf4 {[%emt 0:12:20]} Qxd4 {[%emt 0:00:39]} 17. Nxd4 {[%emt 0:00:35]} Rxb2 {[%emt 0:00:07]} 18. Bc1 {[%emt 0:07:01]} Rb7 {[%emt 0:01:55]} 19. Nb3 {[%emt 0:06:29]} Bf6 {[%emt 0:00:19]} 20. f3 {[%emt 0:01:44]} Rxb3 {[%emt 0:01:02]} 21. axb3 {[%emt 0:00:22]} Bxa1 {[%emt 0:00:06]} 22. g4 {[%emt 0:00:13]} f5 {[%emt 0:00:53]} 23. Kf2 {[%emt 0:01:08]} fxg4 {[%emt 0:00:10]} 24. Ba3 {[%emt 0:00:53]} Bd4+ {[%emt 0:00:05]} 25. Kg3 {[%emt 0:00:28]} Be5+ {[%emt 0:00:47]} 26. Kh4 {[%emt 0:00:46]} g5+ {[%emt 0:04:15]} 27. Kxg5 {[%emt 0:00:27]} Bf4+ {[%emt 0:00:06]} 28. Kh4 {[%emt 0:00:20]} Rf6 {[%emt 0:00:06]} 0-1

[Event "28th Hit Open-A 2024"]
[Site "Nova Gorica"]
[Date "2024.01.27"]
[Round "2.13"]
[White "Gregoric, Andraz"]
[Black "Capaliku, Aleks"]
[Result "1-0"]
[ECO "C65"]
[WhiteElo "2217"]
[BlackElo "1913"]
[Annotator "NA RC"]
[PlyCount "65"]
[EventDate "2024.01.22"]
[EventType "swiss"]
[EventCountry "SLO"]
[SourceTitle "playchess.com"]
[Source "ChessBase"]
[SourceQuality "1"]
[TimeControl "5400+30"]

1. e4 {[%emt 0:00:01]} e5 {[%emt 0:01:57]} 2. Nf3 {[%emt 0:00:28]} Nc6 {[%emt 0:00:02]} 3. Bb5 {[%emt 0:00:06]} Nf6 {[%emt 0:00:08]} 4. d3 {[%emt 0:00:06]} Bc5 {[%emt 0:00:10]} 5. Bxc6 {[%emt 0:00:22]} dxc6 {[%emt 0:00:02]} 6. a4 {[%emt 0:00:08]} O-O {[%emt 0:04:07]} 7. O-O {[%emt 0:00:14]} Re8 {[%emt 0:02:25]} 8. Na3 {[%emt 0:00:56]} h6 {[%emt 0:03:21]} 9. Nc4 {[%emt 0:00:59]} Bd6 {[%emt 0:03:07]} 10. h3 {[%emt 0:01:49]} b5 {[%emt 0:04:29]} 11. Na5 {[%emt 0:15:30]} Bd7 {[%emt 0:03:30]} 12. Be3 {[%emt 0:00:10]} a6 {[%emt 0:05:58]} 13. Nd2 {[%emt 0:22:06]} Qe7 {[%emt 0:07:59]} 14. c4 {[%emt 0:12:18]} Bb4 {[%emt 0:24:17]} 15. Ndb3 {[%emt 0:02:15]} bxa4 {[%emt 0:15:47]} 16. Rxa4 {[%emt 0:00:48]} c5 {[%emt 0:00:01]} 17. Ra2 {[%emt 0:00:40]} Ra7 {[%emt 0:03:44]} 18. Qe2 {[%emt 0:01:21]} Qd6 {[%emt 0:01:53]} 19. f4 {[%emt 0:05:57]} exf4 {[%emt 0:05:04]} 20. Bxf4 {[%emt 0:01:15]} Qb6 {[%emt 0:00:03]} 21. Qf2 {[%emt 0:00:47]} Be6 {[%emt 0:01:20]} 22. Be3 {[%emt 0:06:03]} Nd7 {[%emt 0:00:38]} 23. Rd1 {[%emt 0:06:14]} f6 {[%emt 0:00:51]} 24. d4 {[%emt 0:05:39]} cxd4 {[%emt 0:00:40]} 25. Nxd4 {[%emt 0:00:50]} c5 {[%emt 0:03:20]} 26. Ndc6 {[%emt 0:01:02]} Rc7 {[%emt 0:00:31]} 27. Nxb4 {[%emt 0:00:11]} Qxb4 {[%emt 0:00:12]} 28. Bxh6 {[%emt 0:01:48]} Bxc4 {[%emt 0:01:22]} 29. Nxc4 {[%emt 0:03:53]} Qxc4 {[%emt 0:00:03]} 30. Bxg7 {[%emt 0:04:18]} Ne5 {[%emt 0:05:25]} 31. Bxf6 {[%emt 0:00:34]} Qxa2 {[%emt 0:02:02]} 32. Qg3+ {[%emt 0:00:07]} Kf7 {[%emt 0:01:19]} 33. Bxe5 {[%emt 0:00:28]} 1-0

[Event "28th Hit Open-A 2024"]
[Site "Nova Gorica"]
[Date "2024.01.27"]
[Round "2.15"]
[White "Kukushkin, Ivan"]
[Black "Siraj, Svit"]
[Result "1/2-1/2"]
[ECO "C30"]
[WhiteElo "1890"]
[BlackElo "2182"]
[Annotator "NA RC"]
[PlyCount "47"]
[EventDate "2024.01.22"]
[EventType "swiss"]
[EventCountry "SLO"]
[SourceTitle "playchess.com"]
[Source "ChessBase"]
[SourceQuality "1"]
[TimeControl "5400+30"]

1. e4 {[%emt 0:00:33]} e5 {[%emt 0:00:09]} 2. Nc3 {[%emt 0:00:10]} Nf6 {[%emt 0:00:12]} 3. Bc4 {[%emt 0:00:01]} Bc5 {[%emt 0:02:04]} 4. d3 {[%emt 0:02:05]} Nc6 {[%emt 0:01:36]} 5. f4 {[%emt 0:02:07]} d6 {[%emt 0:00:55]} 6. Nf3 {[%emt 0:02:11]} Ng4 {[%emt 0:17:28]} 7. Ng5 {[%emt 0:01:12]} h6 {[%emt 0:10:36]} 8. Bxf7+ {[%emt 0:01:59]} Kf8 {[%emt 0:00:17]} 9. Be6 {[%emt 0:00:39]} hxg5 {[%emt 0:05:51]} 10. Bxg4 {[%emt 0:00:08]} gxf4 {[%emt 0:00:48]} 11. g3 {[%emt 0:03:56]} fxg3 {[%emt 0:06:05]} 12. Qf3+ {[%emt 0:00:44]} Kg8 {[%emt 0:02:32]} 13. Bxc8 {[%emt 0:01:05]} Bf2+ {[%emt 0:03:36]} 14. Kf1 {[%emt 0:02:23]} Rxc8 {[%emt 0:01:18]} 15. hxg3 {[%emt 0:00:33]} Rxh1+ {[%emt 0:00:19]} 16. Qxh1 {[%emt 0:00:04]} Bxg3 {[%emt 0:02:38]} 17. Kg2 {[%emt 0:00:29]} Bh4 {[%emt 0:06:06]} 18. Qh3 {[%emt 0:01:14]} Nd4 {[%emt 0:02:31]} 19. Bd2 {[%emt 0:02:26]} Bg5 {[%emt 0:03:34]} 20. Nd5 {[%emt 0:01:29]} Rb8 {[%emt 0:11:41]} 21. Rh1 {[%emt 0:00:28]} Bxd2 {[%emt 0:03:36]} 22. Qh7+ {[%emt 0:00:12]} Kf7 {[%emt 0:01:22]} 23. Qh5+ {[%emt 0:00:42]} Kg8 {[%emt 0:06:11]} 24. Qh7+ {[%emt 0:00:16]} 1/2-1/2

[Event "28th Hit Open-A 2024"]
[Site "Nova Gorica"]
[Date "2024.01.27"]
[Round "2.16"]
[White "Marchesich, Giovanni"]
[Black "Veselic, Maks"]
[Result "1-0"]
[ECO "C77"]
[WhiteElo "2210"]
[BlackElo "1874"]
[Annotator "NA RC"]
[PlyCount "85"]
[EventDate "2024.01.22"]
[EventType "swiss"]
[EventCountry "SLO"]
[SourceTitle "playchess.com"]
[Source "ChessBase"]
[SourceQuality "1"]
[TimeControl "5400+30"]

1. e4 {[%emt 0:00:06]} e5 {[%emt 0:00:23]} 2. Nf3 {[%emt 0:00:08]} Nc6 {[%emt 0:00:15]} 3. Bb5 {[%emt 0:00:14]} a6 {[%emt 0:01:56]} 4. Ba4 {[%emt 0:00:13]} Nf6 {[%emt 0:00:34]} 5. O-O {[%emt 0:00:22]} Be7 {[%emt 0:01:38]} 6. d3 {[%emt 0:01:31]} b5 {[%emt 0:02:57]} 7. Bb3 {[%emt 0:00:07]} d6 {[%emt 0:00:18]} 8. a3 {[%emt 0:00:28]} O-O {[%emt 0:01:10]} 9. Nc3 {[%emt 0:00:13]} Na5 {[%emt 0:03:47]} 10. Ba2 {[%emt 0:00:10]} c5 {[%emt 0:00:41]} 11. b4 {[%emt 0:00:29]} cxb4 {[%emt 0:01:57]} 12. axb4 {[%emt 0:00:07]} Nc6 {[%emt 0:00:14]} 13. Nd5 {[%emt 0:00:15]} Nxd5 {[%emt 0:02:11]} 14. Bxd5 {[%emt 0:01:12]} Bb7 {[%emt 0:02:10]} 15. c4 {[%emt 0:21:05]} Qd7 {[%emt 0:05:34]} 16. Qb3 {[%emt 0:01:55]} Na7 {[%emt 0:06:26]} 17. c5 {[%emt 0:07:23]} dxc5 {[%emt 0:03:31]} 18. Nxe5 {[%emt 0:03:57]} Bxd5 {[%emt 0:01:04]} 19. Nxd7 {[%emt 0:03:30]} Bxb3 {[%emt 0:00:16]} 20. Nxf8 {[%emt 0:00:25]} Rxf8 {[%emt 0:02:04]} 21. Rxa6 {[%emt 0:00:41]} Nc8 {[%emt 0:00:15]} 22. bxc5 {[%emt 0:01:49]} Bxc5 {[%emt 0:00:04]} 23. Bb2 {[%emt 0:00:36]} Rd8 {[%emt 0:04:38]} 24. Rc1 {[%emt 0:01:16]} Bb6 {[%emt 0:03:09]} 25. Rc6 {[%emt 0:13:55]} h6 {[%emt 0:03:44]} 26. Kf1 {[%emt 0:02:02]} Be6 {[%emt 0:01:25]} 27. Ke2 {[%emt 0:02:36]} Bd4 {[%emt 0:02:25]} 28. Bxd4 {[%emt 0:00:26]} Rxd4 {[%emt 0:00:02]} 29. Ra8 {[%emt 0:01:12]} Rd8 {[%emt 0:03:47]} 30. Rb8 {[%emt 0:06:05]} Re8 {[%emt 0:03:16]} 31. Rc5 {[%emt 0:01:55]} f5 {[%emt 0:02:14]} 32. f3 {[%emt 0:01:43]} fxe4 {[%emt 0:00:33]} 33. fxe4 {[%emt 0:00:10]} Kf7 {[%emt 0:01:30]} 34. Rcxb5 {[%emt 0:00:44]} Nd6 {[%emt 0:01:06]} 35. R5b6 {[%emt 0:01:34]} Rxb8 {[%emt 0:01:03]} 36. Rxb8 {[%emt 0:00:01]} Kf6 {[%emt 0:00:15]} 37. Ke3 {[%emt 0:00:43]} Nf7 {[%emt 0:00:14]} 38. d4 {[%emt 0:00:40]} Bc4 {[%emt 0:00:49]} 39. Rb4 {[%emt 0:05:31]} Bf1 {[%emt 0:02:20]} 40. Rb2 {[%emt 0:00:06]} Bc4 {[%emt 0:00:20]} 41. Rf2+ {[%emt 0:02:58]} Ke7 {[%emt 0:00:33]} 42. d5 {[%emt 0:00:16]} Nd6 {[%emt 0:00:29]} 43. Kd4 {[%emt 0:01:00]} 1-0

[Event "28th Hit Open-A 2024"]
[Site "Nova Gorica"]
[Date "2024.01.27"]
[Round "2.17"]
[White "Budai, Federico"]
[Black "Caruso, Augusto"]
[Result "0-1"]
[ECO "C04"]
[WhiteElo "1861"]
[BlackElo "2159"]
[Annotator "NA RC"]
[PlyCount "65"]
[EventDate "2024.01.22"]
[EventType "swiss"]
[EventCountry "SLO"]
[SourceTitle "playchess.com"]
[Source "ChessBase"]
[SourceQuality "1"]
[TimeControl "5400+30"]

1. e4 {[%emt 0:00:02]} e6 {[%emt 0:00:24]} 2. d4 {[%emt 0:00:09]} d5 {[%emt 0:00:02]} 3. Nd2 {[%emt 0:00:12]} Nc6 {[%emt 0:01:03]} 4. c3 {[%emt 0:01:08]} e5 {[%emt 0:01:17]} 5. dxe5 {[%emt 0:06:43]} dxe4 {[%emt 0:06:29]} 6. Qa4 {[%emt 0:09:27]} Qe7 {[%emt 0:15:36]} 7. Qxe4 {[%emt 0:15:45]} Nxe5 {[%emt 0:01:00]} 8. Nc4 {[%emt 0:02:33]} Ng6 {[%emt 0:11:21]} 9. Qxe7+ {[%emt 0:02:13]} Bxe7 {[%emt 0:00:03]} 10. Nf3 {[%emt 0:02:18]} Nf6 {[%emt 0:01:31]} 11. Be2 {[%emt 0:02:58]} Nd5 {[%emt 0:06:44]} 12. Ne3 {[%emt 0:04:42]} Ndf4 {[%emt 0:05:55]} 13. Bf1 {[%emt 0:01:25]} Bd7 {[%emt 0:04:13]} 14. Nd4 {[%emt 0:07:44]} Ne5 {[%emt 0:08:03]} 15. g3 {[%emt 0:11:21]} Nfd3+ {[%emt 0:02:20]} 16. Bxd3 {[%emt 0:10:37]} Nxd3+ {[%emt 0:00:02]} 17. Ke2 {[%emt 0:00:17]} Nc5 {[%emt 0:04:04]} 18. Nd5 {[%emt 0:06:16]} Bd6 {[%emt 0:11:59]} 19. b3 {[%emt 0:11:39]} O-O-O {[%emt 0:00:26]} 20. Be3 {[%emt 0:00:31]} Rhe8 {[%emt 0:02:04]} 21. Rhe1 {[%emt 0:00:20]} c6 {[%emt 0:04:28]} 22. Nf4 {[%emt 0:01:29]} Bxf4 {[%emt 0:02:28]} 23. gxf4 {[%emt 0:00:04]} Ne4 {[%emt 0:00:12]} 24. Kf3 {[%emt 0:01:06]} c5 {[%emt 0:00:42]} 25. Ne2 {[%emt 0:01:11]} Bc6 {[%emt 0:00:15]} 26. Kg4 {[%emt 0:00:05]} f5+ {[%emt 0:03:36]} 27. Kh3 {[%emt 0:01:05]} Re6 {[%emt 0:00:38]} 28. f3 {[%emt 0:00:38]} Nd2 {[%emt 0:02:06]} 29. Ng1 {[%emt 0:00:29]} Bxf3 {[%emt 0:03:03]} 30. Bxd2 {[%emt 0:00:26]} Bg4+ {[%emt 0:00:01]} 31. Kg3 {[%emt 0:00:06]} Rd3+ {[%emt 0:00:02]} 32. Be3 {[%emt 0:00:45]} Rexe3+ {[%emt 0:00:32]} 33. Rxe3 {[%emt 0:00:48]} 0-1